fUST/lending_fUST_20251010
["ID","MTS","AMOUNT","RATE_DAILY","PERIOD"]
[390597212,1760099443846,-500.0,0.00016438,2]
[390597213,1760099443855,-500.0,0.00016438,2]
[390597214,1760099443864,-500.0,0.00016438,2]
[390597215,1760099443873,-500.0,0.00016438,2]
[390597216,1760099443883,-500.0,0.00016438,2]
[390597217,1760099443892,-500.0,0.00016438,2]
[390597218,1760099443901,-500.0,0.00016438,2]
[390597219,1760099443911,-500.0,0.00016438,2]
[390597220,1760099443920,-513.53,0.00016438,2]
[390597221,1760099443930,-500.0,0.00016438,2]
[390597222,1760099443939,-500.0,0.00016438,2]
[390597223,1760099443948,-481.17013988,0.00016438,2]
[390597224,1760099443958,-500.0,0.00016438,2]
[390597225,1760099443968,-500.0,0.00016438,2]
[390597226,1760099443977,-500.0,0.00016438,2]
[390597227,1760099443986,-500.0,0.00016438,2]
[390597228,1760099443995,-338.04,0.00016438,2]
[390597229,1760099444005,-500.0,0.00016438,2]
[390597230,1760099444014,-500.0,0.00016438,2]
[390597231,1760099444023,-500.0,0.00016438,2]
[390597232,1760099444032,-500.0,0.00016438,2]
[390597233,1760099444041,-500.0,0.00016438,2]
[390597234,1760099444050,-500.0,0.00016438,2]
[390597235,1760099444058,-500.0,0.00016438,2]
[390597236,1760099444068,-300.0,0.00016438,2]
[390597237,1760099444077,-500.0,0.00016438,2]
[390597238,1760099444088,-500.0,0.00016438,2]
[390597239,1760099444097,-500.0,0.00016438,2]
[390597240,1760099444106,-500.0,0.00016438,2]
[390597241,1760099444115,-500.0,0.00016438,2]
[390597242,1760099444124,-500.0,0.00016438,2]
[390597243,1760099444133,-500.0,0.00016438,2]
[390597244,1760099444142,-500.0,0.00016438,2]
[390597245,1760099444151,-500.0,0.00016438,2]
[390597246,1760099444160,-500.0,0.00016438,2]
[390597247,1760099444169,-500.0,0.00016438,2]
[390597248,1760099444178,-500.0,0.00016438,2]
[390597249,1760099444188,-500.0,0.00016438,2]
[390597250,1760099444197,-500.0,0.00016438,2]
[390597251,1760099444206,-501.49941541,0.00016438,2]
[390597252,1760099444216,-500.0,0.00016438,2]
[390597253,1760099444225,-500.0,0.00016438,2]
[390597254,1760099444234,-500.0,0.00016438,2]
[390597255,1760099444243,-501.78675145,0.00016438,2]
[390597256,1760099444253,-500.0,0.00016438,2]
[390597257,1760099444262,-503.73633333,0.00016438,2]
[390597258,1760099444274,-172.78,0.00016438,2]
[390597259,1760099444283,-500.0,0.00016438,2]
[390597260,1760099444293,-500.0,0.00016438,2]
[390597261,1760099444302,-500.0,0.00016438,2]
[390597262,1760099444311,-500.0,0.00016438,2]
[390597263,1760099444320,-500.0,0.00016438,2]
[390597264,1760099444330,-500.0,0.00016438,2]
[390597265,1760099444339,-500.0,0.00016438,2]
[390597266,1760099444350,-500.0,0.00016438,2]
[390597267,1760099444360,-500.0,0.00016438,2]
[390597268,1760099444369,-500.0,0.00016438,2]
[390597269,1760099444379,-500.0,0.00016438,2]
[390597270,1760099444388,-500.0,0.00016438,2]
[390597271,1760099444397,-529.87188832,0.00016438,2]
[390597272,1760099444406,-500.0,0.00016438,2]
[390597273,1760099444416,-500.0,0.00016438,2]
[390597274,1760099444426,-500.0,0.00016438,2]
[390597275,1760099444435,-643.11,0.00016438,2]
[390597276,1760099444444,-500.0,0.00016438,2]
[390597277,1760099444454,-619.78,0.00016438,2]
[390597278,1760099444464,-500.0,0.00016438,2]
[390597279,1760099444474,-500.0,0.00016438,2]
[390597280,1760099444484,-500.0,0.00016438,2]
[390597281,1760099444493,-500.0,0.00016438,2]
[390597282,1760099444503,-500.0,0.00016438,2]
[390597283,1760099444513,-500.0,0.00016438,2]
[390597284,1760099444522,-500.0,0.00016438,2]
[390597285,1760099444531,-500.0,0.00016438,2]
[390597286,1760099444540,-500.0,0.00016438,2]
[390597287,1760099444551,-500.0,0.00016438,2]
[390597288,1760099444563,-501.44451044,0.00016438,2]
[390597289,1760099444572,-500.0,0.00016438,2]
[390597291,1760099444582,-500.0,0.00016438,2]
[390597293,1760099444592,-500.0,0.00016438,2]
[390597295,1760099444601,-500.0,0.00016438,2]
[390597297,1760099444610,-500.0,0.00016438,2]
[390597299,1760099444618,-500.0,0.00016438,2]
[390597301,1760099444627,-500.56684885,0.00016438,2]
[390597302,1760099444636,-500.0,0.00016438,2]
[390597304,1760099444645,-505.11,0.00016438,2]
[390597306,1760099444654,-500.0,0.00016438,2]
[390597308,1760099444663,-500.0,0.00016438,2]
[390597309,1760099444672,-500.0,0.00016438,2]
[390597310,1760099444682,-500.0,0.00016438,2]
[390597311,1760099444691,-500.0,0.00016438,2]
[390597312,1760099444700,-500.0,0.00016438,2]
[390597313,1760099444710,-500.0,0.00016438,2]
[390597314,1760099444719,-500.0,0.00016438,2]
[390597315,1760099444728,-799.5,0.00016438,2]
[390597316,1760099444737,-268.58283956,0.00016438,2]
[390597317,1760099444745,-500.0,0.00016438,2]
[390597318,1760099444754,-501.12285652,0.00016438,2]
[390597319,1760099444763,-500.0,0.00016438,2]
[390597320,1760099444773,-1007.51,0.00016438,2]
[390597321,1760099444782,-583.1,0.00016438,2]
[390597322,1760099444790,-500.0,0.00016438,2]
[390597323,1760099444799,-500.0,0.00016438,2]
[390597324,1760099444807,-500.0,0.00016438,2]
[390597325,1760099444816,-500.0,0.00016438,2]
[390597326,1760099444825,-500.0,0.00016438,2]
[390597327,1760099444834,-500.0,0.00016438,2]
[390597328,1760099444843,-605.62949756,0.00016438,2]
[390597329,1760099444852,-500.0,0.00016438,2]
[390597330,1760099444861,-500.0,0.00016438,2]
[390597331,1760099444870,-500.0,0.00016438,2]
[390597332,1760099444880,-500.0,0.00016438,2]
[390597333,1760099444889,-502.10012245,0.00016438,2]
[390597334,1760099444898,-525.99772976,0.00016438,2]
[390597335,1760099444908,-500.0,0.00016438,2]
[390597336,1760099444917,-500.0,0.00016438,2]
[390597337,1760099444926,-500.0,0.00016438,2]
[390597338,1760099444936,-500.0,0.00016438,2]
[390597339,1760099444945,-500.0,0.00016438,2]
[390597340,1760099444955,-500.0,0.00016438,2]
[390597341,1760099444964,-500.0,0.00016438,2]
[390597342,1760099444973,-500.0,0.00016438,2]
[390597343,1760099444982,-500.0,0.00016438,2]
[390597344,1760099444991,-502.4887335,0.00016438,2]
[390597345,1760099445000,-500.0,0.00016438,2]
[390597346,1760099445010,-500.0,0.00016438,2]
[390597347,1760099445021,-500.0,0.00016438,2]
[390597348,1760099445030,-500.0,0.00016438,2]
[390597349,1760099445039,-500.0,0.00016438,2]
[390597350,1760099445048,-500.0,0.00016438,2]
[390597351,1760099445056,-500.0,0.00016438,2]
[390597352,1760099445065,-500.0,0.00016438,2]
[390597353,1760099445074,-500.0,0.00016438,2]
[390597354,1760099445083,-500.0,0.00016438,2]
[390597355,1760099445091,-500.0,0.00016438,2]
[390597356,1760099445100,-500.0,0.00016438,2]
[390597357,1760099445109,-500.0,0.00016438,2]
[390597358,1760099445118,-500.0,0.00016438,2]
[390597359,1760099445127,-260.75187693,0.00016438,2]
[390597360,1760099445136,-500.0,0.00016438,2]
[390597361,1760099445145,-500.0,0.00016438,2]
[390597362,1760099445154,-500.0,0.00016438,2]
[390597363,1760099445162,-502.36347265,0.00016438,2]
[390597364,1760099445171,-563.37,0.00016438,2]
[390597365,1760099445180,-785.82,0.00016438,2]
[390597366,1760099445189,-500.0,0.00016438,2]
[390597367,1760099445198,-500.0,0.00016438,2]
[390597368,1760099445206,-500.0,0.00016438,2]
[390597369,1760099445215,-500.0,0.00016438,2]
[390597370,1760099445224,-500.0,0.00016438,2]
[390597371,1760099445233,-501.37353305,0.00016438,2]
[390597372,1760099445242,-500.0,0.00016438,2]
[390597373,1760099445251,-4358.09,0.00016438,2]
[390597374,1760099445260,-1214.73,0.00016438,2]
[390597375,1760099445274,-708.78,0.00016438,2]
[390597376,1760099445283,-500.67999248,0.00016438,2]
[390597377,1760099445292,-500.0,0.00016438,2]
[390597378,1760099445301,-1075.23,0.00016438,2]
[390597379,1760099445312,-491.80008126,0.00016438,2]
[390597380,1760099445322,-500.0,0.00016438,2]
[390597381,1760099445333,-500.0,0.00016438,2]
[390597382,1760099445347,-500.0,0.00016438,2]
[390597383,1760099445357,-500.0,0.00016438,2]
[390597384,1760099445367,-500.0,0.00016438,2]
[390597385,1760099445376,-500.0,0.00016438,2]
[390597386,1760099445386,-500.0,0.00016438,2]
[390597387,1760099445396,-500.0,0.00016438,2]
[390597388,1760099445405,-485.02100829,0.00016438,2]
[390597389,1760099445414,-500.0,0.00016438,2]
[390597390,1760099445424,-500.0,0.00016438,2]
[390597391,1760099445433,-500.0,0.00016438,2]
[390597392,1760099445442,-500.0,0.00016438,2]
[390597393,1760099445451,-500.0,0.00016438,2]
[390597394,1760099445461,-500.0,0.00016438,2]
[390597395,1760099445470,-500.0,0.00016438,2]
[390597396,1760099445479,-500.0,0.00016438,2]
[390597397,1760099445488,-500.0,0.00016438,2]
[390597398,1760099445498,-501.487528,0.00016438,2]
[390597399,1760099445507,-523.59,0.00016438,2]
[390597400,1760099445516,-630.11,0.00016438,2]
[390597401,1760099445525,-500.0,0.00016438,2]
[390597402,1760099445534,-500.0,0.00016438,2]
[390597403,1760099445544,-501.47435549,0.00016438,2]
[390597404,1760099445553,-500.0,0.00016438,2]
[390597405,1760099445562,-500.0,0.00016438,2]
[390597406,1760099445572,-500.0,0.00016438,2]
[390597407,1760099445581,-500.0,0.00016438,2]
[390597408,1760099445591,-500.0,0.00016438,2]
[390597409,1760099445600,-500.0,0.00016438,2]
[390597410,1760099445609,-500.0,0.00016438,2]
[390597411,1760099445618,-501.60521197,0.00016438,2]
[390597412,1760099445627,-618.72,0.00016438,2]
[390597413,1760099445636,-536.08,0.00016438,2]
[390597414,1760099445646,-500.0,0.00016438,2]
[390597415,1760099445656,-4118.3,0.00016438,2]
[390597416,1760099445665,-500.0,0.00016438,2]
[390597417,1760099445675,-950.8,0.00016438,2]
[390597418,1760099445685,-1793.03,0.00016438,2]
[390597419,1760099445694,-505.95,0.00016438,2]
[390597420,1760099445702,-500.0,0.00016438,2]
[390597421,1760099445711,-500.0,0.00016438,2]
[390597422,1760099445720,-526.26,0.00016438,2]
[390597423,1760099445729,-500.0,0.00016438,2]
[390597424,1760099445737,-412.61953691,0.00016438,2]
[390597425,1760099445747,-500.0,0.00016438,2]
[390597426,1760099445756,-500.0,0.00016438,2]
[390597427,1760099445764,-500.0,0.00016438,2]
[390597428,1760099445774,-500.0,0.00016438,2]
[390597429,1760099445784,-500.0,0.00016438,2]
[390597430,1760099445794,-500.0,0.00016438,2]
[390597431,1760099445803,-500.0,0.00016438,2]
[390597432,1760099445812,-501.53,0.00016438,2]
[390597433,1760099445822,-771.66,0.00016438,2]
[390597434,1760099445832,-500.0,0.00016438,2]
[390597435,1760099445842,-500.0,0.00016438,2]
[390597436,1760099445852,-500.0,0.00016438,2]
[390597437,1760099445861,-415.25364634,0.00016438,2]
[390597438,1760099445871,-500.0,0.00016438,2]
[390597439,1760099445880,-500.0,0.00016438,2]
[390597440,1760099445890,-626.41,0.00016438,2]
[390597441,1760099445899,-500.0,0.00016438,2]
[390597442,1760099445908,-380.93625469,0.00016438,2]
[390597443,1760099445917,-500.0,0.00016438,2]
[390597444,1760099445926,-500.0,0.00016438,2]
[390597445,1760099445935,-904.31,0.00016438,2]
[390597446,1760099445945,-500.0,0.00016438,2]
[390597447,1760099445955,-584.52,0.00016438,2]
[390597448,1760099445965,-623.6423207,0.00016438,2]
[390597449,1760099446148,-616.5,0.00016438,2]
[390597450,1760099446158,-762.72,0.00016438,2]
[390597451,1760099446168,-500.0,0.00016438,2]
[390597452,1760099446177,-500.0,0.00016438,2]
[390597453,1760099446187,-500.0,0.00016438,2]
[390597454,1760099446196,-500.0,0.00016438,2]
[390597455,1760099446206,-500.0,0.00016438,2]
[390597456,1760099446216,-543.2,0.00016438,2]
[390597458,1760099446225,-500.0,0.00016438,2]
[390597461,1760099446238,-500.0,0.00016438,2]
[390597462,1760099446247,-500.0,0.00016438,2]
[390597463,1760099446257,-500.0,0.00016438,2]
[390597464,1760099446267,-2405.04,0.00016438,2]
[390597465,1760099446277,-500.0,0.00016438,2]
[390597467,1760099446286,-500.0,0.00016438,2]
[390597469,1760099446296,-500.0,0.00016438,2]
[390597470,1760099446306,-500.0,0.00016438,2]
[390597471,1760099446317,-500.0,0.00016438,2]
[390597472,1760099446327,-500.0,0.00016438,2]
[390597473,1760099446338,-500.0,0.00016438,2]
[390597474,1760099446348,-356.93671944,0.00016438,2]
[390597475,1760099446357,-500.0,0.00016438,2]
[390597476,1760099446366,-3371.16,0.00016438,2]
[390597477,1760099446376,-500.0,0.00016438,2]
[390597478,1760099446385,-500.0,0.00016438,2]
[390597479,1760099446395,-500.60334351,0.00016438,2]
[390597480,1760099446405,-500.0,0.00016438,2]
[390597481,1760099446414,-500.0,0.00016438,2]
[390597482,1760099446424,-500.0,0.00016438,2]
[390597483,1760099446433,-500.0,0.00016438,2]
[390597485,1760099446442,-500.0,0.00016438,2]
[390597486,1760099446452,-500.0,0.00016438,2]
[390597488,1760099446461,-500.0,0.00016438,2]
[390597489,1760099446472,-500.0,0.00016438,2]
[390597490,1760099446482,-500.0,0.00016438,2]
[390597491,1760099446491,-500.0,0.00016438,2]
[390597492,1760099446502,-1656.93,0.00016438,2]
[390597493,1760099446511,-2754.36,0.00016438,2]
[390597494,1760099446520,-500.0,0.00016438,2]
[390597495,1760099446529,-304.66882393,0.00016438,2]
[390597496,1760099446538,-500.0,0.00016438,2]
[390597497,1760099446547,-500.0,0.00016438,2]
[390597498,1760099446556,-500.0,0.00016438,2]
[390597499,1760099446565,-1609.48,0.00016438,2]
[390597500,1760099446574,-1563.85,0.00016438,2]
[390597501,1760099446586,-1609.48,0.00016438,2]
[390597502,1760099446595,-1609.48,0.00016438,2]
[390597503,1760099446604,-784.65,0.00016438,2]
[390597504,1760099446613,-1609.48,0.00016438,2]
[390597505,1760099446622,-1609.48,0.00016438,2]
[390597506,1760099446632,-1609.48,0.00016438,2]
[390597507,1760099446642,-1609.48,0.00016438,2]
[390597508,1760099446651,-1609.48,0.00016438,2]
[390597509,1760099446660,-1609.48,0.00016438,2]
[390597511,1760099446670,-1609.48,0.00016438,2]
[390597512,1760099446679,-618.89,0.00016438,2]
[390597513,1760099446688,-500.0,0.00016438,2]
[390597514,1760099446697,-636.4719286,0.00016438,2]
[390597515,1760099446705,-507.64,0.00016438,2]
[390597516,1760099446715,-500.0,0.00016438,2]
[390597518,1760099446723,-500.0,0.00016438,2]
[390597519,1760099446732,-500.0,0.00016438,2]
[390597520,1760099446741,-500.0,0.00016438,2]
[390597521,1760099446750,-500.41016111,0.00016438,2]
[390597522,1760099446759,-500.0,0.00016438,2]
[390597523,1760099446768,-500.0,0.00016438,2]
[390597524,1760099446777,-500.0,0.00016438,2]
[390597525,1760099446787,-507.56,0.00016438,2]
[390597526,1760099446796,-1298.65,0.00016438,2]
[390597527,1760099446805,-500.0,0.00016438,2]
[390597528,1760099446814,-220.45133857,0.00016438,2]
[390597529,1760099446823,-500.0,0.00016438,2]
[390597530,1760099446834,-500.0,0.00016438,2]
[390597531,1760099446844,-486.27783622,0.00016438,2]
[390597532,1760099446854,-591.47,0.00016438,2]
[390597533,1760099446863,-209.78067756,0.00016438,2]
[390597534,1760099446872,-500.0,0.00016438,2]
[390597535,1760099446881,-500.0,0.00016438,2]
[390597536,1760099446890,-500.0,0.00016438,2]
[390597537,1760099446900,-500.0,0.00016438,2]
[390597538,1760099446909,-502.45846065,0.00016438,2]
[390597539,1760099446917,-500.0,0.00016438,2]
[390597540,1760099446926,-500.0,0.00016438,2]
[390597541,1760099446936,-619.33,0.00016438,2]
[390597542,1760099446946,-500.0,0.00016438,2]
[390597543,1760099446956,-500.0,0.00016438,2]
[390597544,1760099446965,-683.55,0.00016438,2]
[390597545,1760099446975,-717.81,0.00016438,2]
[390597546,1760099446983,-500.0,0.00016438,2]
[390597547,1760099446992,-500.0,0.00016438,2]
[390597548,1760099447002,-702.21,0.00016438,2]
[390597549,1760099447012,-500.0,0.00016438,2]
[390597550,1760099447020,-462.94267284,0.00016438,2]
[390597551,1760099447030,-500.0,0.00016438,2]
[390597552,1760099447040,-500.0,0.00016438,2]
[390597553,1760099447049,-2242.71,0.00016438,2]
[390597554,1760099447058,-696.19,0.00016438,2]
[390597555,1760099447067,-500.0,0.00016438,2]
[390597556,1760099447076,-500.0,0.00016438,2]
[390597557,1760099447087,-500.0,0.00016438,2]
[390597558,1760099447096,-1375.86,0.00016438,2]
[390597559,1760099447105,-571.43,0.00016438,2]
[390597560,1760099447114,-500.0,0.00016438,2]
[390597561,1760099447123,-1599.94,0.00016438,2]
[390597562,1760099447132,-500.0,0.00016438,2]
[390597563,1760099447142,-500.0,0.00016438,2]
[390597564,1760099447151,-502.38203244,0.00016438,2]
[390597565,1760099447160,-500.0,0.00016438,2]
[390597566,1760099447169,-500.0,0.00016438,2]
[390597567,1760099447178,-500.0,0.00016438,2]
[390597568,1760099447187,-500.0,0.00016438,2]
[390597569,1760099447196,-500.0,0.00016438,2]
[390597570,1760099447205,-500.0,0.00016438,2]
[390597571,1760099447214,-500.0,0.00016438,2]
[390597572,1760099447224,-500.0,0.00016438,2]
[390597573,1760099447233,-1157.53,0.00016438,2]
[390597574,1760099447243,-1000.0,0.00016438,2]
[390597575,1760099447251,-500.0,0.00016438,2]
[390597576,1760099447261,-500.0,0.00016438,2]
[390597577,1760099447275,-1386.69,0.00016438,2]
[390597578,1760099447285,-500.0,0.00016438,2]
[390597579,1760099447294,-500.0,0.00016438,2]
[390597580,1760099447303,-500.0,0.00016438,2]
[390597581,1760099447312,-500.0,0.00016438,2]
[390597582,1760099447322,-500.0,0.00016438,2]
[390597583,1760099447331,-482.90328053,0.00016438,2]
[390597584,1760099447340,-500.0,0.00016438,2]
[390597585,1760099447352,-500.0,0.00016438,2]
[390597586,1760099447362,-500.59645966,0.00016438,2]
[390597587,1760099447373,-500.0,0.00016438,2]
[390597588,1760099447383,-1387.36,0.00016438,2]
[390597589,1760099447392,-500.0,0.00016438,2]
[390597590,1760099447401,-500.0,0.00016438,2]
[390597591,1760099447411,-500.0,0.00016438,2]
[390597592,1760099447420,-1986.55,0.00016438,2]
[390597593,1760099447429,-500.0,0.00016438,2]
[390597594,1760099447439,-197.15921158,0.00016438,2]
[390597595,1760099447448,-500.0,0.00016438,2]
[390597596,1760099447458,-5035.73,0.00016438,2]
[390597597,1760099447467,-536.22,0.00016438,2]
[390597598,1760099447476,-500.0,0.00016438,2]
[390597599,1760099447485,-18603.8837,0.00016483,2]
[390597600,1760099447495,-1000.0,0.00016483,2]
[390597601,1760099447504,-1000.0,0.00016483,2]
[390597602,1760099447513,-1000.0,0.00016483,2]
[390597603,1760099447522,-1000.0,0.00016483,2]
[390597604,1760099447532,-228.84379298,0.00016483,2]
[390597605,1760099447541,-151.0,0.00016483,2]
[390597606,1760099447550,-391.8516513,0.00016541,2]
[390597607,1760099447559,-1609.48,0.00016711,2]
[390597608,1760099447569,-1609.48,0.00016711,2]
[390597609,1760099447578,-1609.48,0.00016711,2]
[390597610,1760099447588,-1609.48,0.00016711,2]
[390597611,1760099447597,-1609.48,0.00016711,2]
[390597612,1760099447606,-500.60525948,0.00016712,2]
[390597613,1760099447615,-500.0,0.00016712,2]
[390597614,1760099447625,-547.39,0.00016712,2]
[390597615,1760099447634,-500.0,0.00016712,2]
[390597616,1760099447643,-500.0,0.00016712,2]
[390597617,1760099447652,-500.0,0.00016712,2]
[390597618,1760099447661,-500.0,0.00016712,2]
[390597619,1760099447671,-500.0,0.00016712,2]
[390597620,1760099447680,-500.0,0.00016712,2]
[390597621,1760099447689,-500.0,0.00016712,2]
[390597622,1760099447698,-500.0,0.00016712,2]
[390597623,1760099447707,-500.0,0.00016712,2]
[390597624,1760099447717,-500.0,0.00016712,2]
[390597625,1760099447726,-500.0,0.00016712,2]
[390597626,1760099447735,-500.0,0.00016712,2]
[390597627,1760099447744,-500.0,0.00016712,2]
[390597628,1760099447754,-500.0,0.00016712,2]
[390597629,1760099447764,-500.0,0.00016712,2]
[390597630,1760099447773,-500.0,0.00016712,2]
[390597631,1760099447783,-500.0,0.00016712,2]
[390597632,1760099447793,-500.0,0.00016712,2]
[390597633,1760099447802,-500.0,0.00016712,2]
[390597634,1760099447811,-646.48,0.00016712,2]
[390597635,1760099447821,-500.0,0.00016712,2]
[390597636,1760099447830,-500.0,0.00016712,2]
[390597637,1760099447840,-300.0,0.00016712,2]
[390597638,1760099447849,-500.0,0.00016712,2]
[390597639,1760099447858,-500.0,0.00016712,2]
[390597640,1760099447869,-500.0,0.00016712,2]
[390597641,1760099447879,-500.0,0.00016712,2]
[390597642,1760099447888,-215.21095051,0.00016712,2]
[390597643,1760099447898,-500.0,0.00016712,2]
[390597644,1760099447908,-500.0,0.00016712,2]
[390597645,1760099447917,-500.0,0.00016712,2]
[390597646,1760099447926,-500.0,0.00016712,2]
[390597647,1760099447937,-500.0,0.00016712,2]
[390597648,1760099447947,-500.0,0.00016712,2]
[390597649,1760099447956,-500.0,0.00016712,2]
[390597650,1760099447965,-643.11,0.00016712,2]
[390597651,1760099447974,-500.0,0.00016712,2]
[390597652,1760099447983,-500.0,0.00016712,2]
[390597653,1760099447993,-500.0,0.00016712,2]
[390597654,1760099448003,-500.0,0.00016712,2]
[390597655,1760099448012,-315.22,0.00016712,2]
[390597656,1760099448021,-500.00000001,0.00016712,2]
[390597657,1760099448030,-500.0,0.00016712,2]
[390597658,1760099448039,-505.11,0.00016712,2]
[390597659,1760099448048,-538.49870538,0.00016712,2]
[390597660,1760099448057,-500.0,0.00016712,2]
[390597661,1760099448067,-266.35708176,0.00016712,2]
[390597662,1760099448089,-233.64291824,0.00016712,2]
[390597663,1760099448098,-799.5,0.00016712,2]
[390597664,1760099448107,-500.0,0.00016712,2]
[390597665,1760099448118,-500.0,0.00016712,2]
[390597666,1760099448127,-1007.51,0.00016712,2]
[390597667,1760099448136,-583.1,0.00016712,2]
[390597668,1760099448146,-500.0,0.00016712,2]
[390597669,1760099448155,-500.0,0.00016712,2]
[390597670,1760099448164,-266.68126561,0.00016712,2]
[390597671,1760099448172,-500.0,0.00016712,2]
[390597672,1760099448181,-500.0,0.00016712,2]
[390597673,1760099448190,-501.63628169,0.00016712,2]
[390597674,1760099448199,-501.40753468,0.00016712,2]
[390597675,1760099448208,-500.0,0.00016712,2]
[390597676,1760099448218,-264.54,0.00016712,2]
[390597677,1760099448227,-249.56,0.00016712,2]
[390597678,1760099448236,-502.78593242,0.00016712,2]
[390597679,1760099448245,-500.0,0.00016712,2]
[390597680,1760099448253,-502.02249056,0.00016712,2]
[390597681,1760099448262,-442.27,0.00016712,2]
[390597682,1760099448274,-500.0,0.00016712,2]
[390597683,1760099448283,-500.0,0.00016712,2]
[390597684,1760099448292,-500.0,0.00016712,2]
[390597685,1760099448301,-271.24,0.00016712,2]
[390597686,1760099448310,-502.54654759,0.00016712,2]
[390597687,1760099448321,-785.82,0.00016712,2]
[390597688,1760099448331,-500.0,0.00016712,2]
[390597689,1760099448341,-500.0,0.00016712,2]
[390597690,1760099448351,-500.0,0.00016712,2]
[390597691,1760099448360,-501.45513019,0.00016712,2]
[390597692,1760099448369,-4358.09,0.00016712,2]
[390597693,1760099448379,-1161.8318191,0.00016712,2]
[390597694,1760099448547,-500.0,0.00016438,2]
[390597695,1760099448556,-52.8981809,0.00016712,2]
[390597696,1760099448566,-708.78,0.00016712,2]
[390597697,1760099448575,-1075.23,0.00016712,2]
[390597698,1760099448587,-501.58892481,0.00016712,2]
[390597699,1760099448596,-500.0,0.00016712,2]
[390597700,1760099448605,-500.0,0.00016712,2]
[390597701,1760099448615,-500.0,0.00016712,2]
[390597702,1760099448624,-187.33,0.00016712,2]
[390597703,1760099448633,-500.0,0.00016712,2]
[390597704,1760099448642,-626.41,0.00016712,2]
[390597705,1760099448651,-500.0,0.00016712,2]
[390597706,1760099448660,-523.59,0.00016712,2]
[390597707,1760099448671,-500.0,0.00016712,2]
[390597708,1760099448681,-500.0,0.00016712,2]
[390597709,1760099448692,-602.08488313,0.00016712,2]
[390597710,1760099448701,-500.0,0.00016712,2]
[390597711,1760099448710,-500.0,0.00016712,2]
[390597712,1760099448719,-618.72,0.00016712,2]
[390597713,1760099448728,-536.08,0.00016712,2]
[390597714,1760099448738,-4118.3,0.00016712,2]
[390597715,1760099448747,-500.0,0.00016712,2]
[390597716,1760099448756,-950.8,0.00016712,2]
[390597717,1760099448765,-1793.03,0.00016712,2]
[390597718,1760099448774,-526.26,0.00016712,2]
[390597719,1760099448783,-500.0,0.00016712,2]
[390597720,1760099448791,-500.0,0.00016712,2]
[390597721,1760099448800,-500.0,0.00016712,2]
[390597722,1760099448810,-501.53,0.00016712,2]
[390597723,1760099448819,-771.66,0.00016712,2]
[390597724,1760099448829,-500.0,0.00016712,2]
[390597725,1760099448839,-500.0,0.00016712,2]
[390597726,1760099448848,-289.89,0.00016712,2]
[390597727,1760099448859,-904.31,0.00016712,2]
[390597728,1760099448870,-500.0,0.00016712,2]
[390597729,1760099448880,-584.52,0.00016712,2]